bitfinex/quotes_SOLUSD_20240906
["timestamp","ask_amount","ask_price","bid_price","bid_amount"]
[1725632559355,7.681,130.19,130.14,7.6839]
[1725632559984,7.6818,130.18,130.13,7.6844]
[1725632560487,1.9207724,130.2,130.06,38.4436]
[1725632560786,1.9207724,130.2,130.11,7.6857]
[1725632560787,7.6833,130.16,130.11,7.6857]
[1725632561479,19.204,130.19,130.09,19.217]
[1725632561662,73.3504724,130.2,130.1,89.28198546]
[1725632561663,13.98806901,130.2,130.1,89.28198546]
[1725632561994,1.92015379,130.26,130.19,7.6809]
[1725632562283,1.92015379,130.26,130.19,7.6808]
[1725632562284,7.6786,130.24,130.19,7.6808]
[1725632562480,7.6792,130.23,130.17,26.8866]
[1725632562682,1.9200973,130.27,130.19,7.6809]
[1725632562873,1.92006323,130.26,130.19,7.6809]
[1725632563384,7.6781,130.24,130.19,7.6809]
[1725632563889,7.6781,130.24,130.17,19.2046]
[1725632564081,7.6777,130.25,130.17,19.2046]
[1725632564267,7.6777,130.25,130.19,7.6809]
[1725632564463,7.6775,130.25,130.19,7.6809]
[1725632564661,43.81842455,130.28,130.19,7.6809]
[1725632564874,43.81842455,130.28,130.17,19.2046]
[1725632564875,7.6791,130.23,130.18,7.6816]
[1725632565075,7.6782,130.24,130.19,7.681]
[1725632565284,41.8987,130.28,130.22,7.6791]
[1725632565285,22.7087,130.28,130.22,7.6791]
[1725632565491,7.6763,130.27,130.22,7.6791]
[1725632565784,7.677,130.26,130.22,7.6791]
[1725632566691,7.677,130.26,130.21,26.8782]
[1725632566899,21.87589692,130.31,130.18,0.84612358]
[1725632566900,7.6786,130.24,130.19,7.6809]
[1725632567186,7.6776,130.25,130.2,7.68]
[1725632567386,7.6782,130.24,130.19,7.6809]
[1725632567568,19.1915,130.27,130.18,19.2038]
[1725632567771,19.1947,130.25,130.15,18.2076]
[1725632567964,7.6806,130.2,130.15,25.8905]
[1725632568169,7.6806,130.2,130.15,18.2076]
[1725632568467,38.3813,130.28,130.15,18.2076]
[1725632568468,2.79936787,130.31,130.17,50.0]
[1725632568768,16.3508,130.32,130.18,0.84613]
[1725632568769,16.62267393,130.3,130.18,0.84613]
[1725632568986,7.6797,130.22,130.18,19.2037]
[1725632569165,19.1931,130.26,130.16,0.84693205]
[1725632569364,19.1931,130.26,130.19,7.6809]
[1725632569365,7.6789,130.23,130.19,7.6809]
[1725632569568,7.6789,130.23,130.17,20.05225133]
[1725632569569,7.6789,130.23,130.18,7.6816]
[1725632569785,7.6782,130.24,130.19,7.6808]
[1725632570181,7.6782,130.24,130.2,7.6804]
[1725632570387,7.6782,130.24,130.19,7.6805]
[1725632570779,7.6782,130.24,130.2,7.6803]
[1725632571193,7.6777,130.25,130.2,7.6803]
[1725632571378,14.70332999,130.3,130.21,0.84677377]
[1725632571570,14.70332999,130.3,130.23,26.8739]
[1725632571774,16.3508,130.32,130.24,45.84570659]
[1725632572002,7.6744,130.31,130.26,7.6763]
[1725632572296,7.6735,130.32,130.28,19.1893]
[1725632572679,0.8371051,130.34,130.25,19.1933]
[1725632573174,7.6752,130.29,130.25,19.1933]
[1725632573870,7.6761,130.28,130.23,7.6786]
[1725632574101,7.6767,130.27,130.22,26.8768]
[1725632574297,7.677,130.26,130.22,26.8768]
[1725632574594,7.6765,130.27,130.22,26.8768]
[1725632575001,7.677,130.26,130.22,19.1977]
[1725632575167,38.3728,130.31,130.19,19.2019]
[1725632575373,7.6776,130.25,130.2,7.6803]
[1725632575914,7.6783,130.24,130.19,26.8828]
[1725632576272,7.6776,130.25,130.19,19.2019]
[1725632576473,7.6782,130.24,130.2,7.6804]
[1725632576800,21.10955703,130.28,130.19,19.2019]
[1725632576971,7.6785,130.24,130.19,26.8828]
[1725632577169,21.11292209,130.26,130.17,7.6821]
[1725632577395,21.10968112,130.28,130.2,19.2004]
[1725632577588,19.1896,130.28,130.2,19.2004]
[1725632577767,7.677,130.26,130.21,7.6794]
[1725632577984,7.6765,130.27,130.22,7.6791]
[1725632579497,73.78246634,130.31,130.2,26.8803]
[1725632579700,65.0,130.3,130.22,7.6791]
[1725632579995,65.0,130.3,130.23,7.6786]
[1725632579996,7.6763,130.28,130.23,7.6786]
[1725632580201,45.0,130.3,130.23,7.6786]
[1725632580405,7.6785,130.24,130.2,7.6803]
[1725632580706,19.1883,130.29,130.18,0.84691715]
[1725632580998,7.677,130.26,130.21,7.6796]
[1725632581301,14.30472416,130.31,130.22,20.04383697]
[1725632581474,14.30472416,130.31,130.22,50.84613697]
[1725632581681,0.8371051,130.34,130.24,50.0]
[1725632581888,0.8371051,130.34,130.26,50.0]
[1725632582089,0.8371051,130.34,130.3,19.1858]
[1725632582301,0.8371051,130.34,130.27,26.8662]
[1725632582479,7.6738,130.32,130.27,26.8662]
[1725632582803,21.93693033,130.34,130.24,19.1949]
[1725632582997,7.6765,130.27,130.22,7.6792]
[1725632583300,7.677,130.26,130.21,20.04558546]
[1725632583481,7.6776,130.25,130.21,26.8789]
[1725632583999,21.10682796,130.3,130.21,19.1992]
[1725632584301,7.6774,130.26,130.22,7.6792]
[1725632584505,7.6778,130.25,130.21,19.1992]
[1725632585000,7.677,130.26,130.21,19.1992]
[1725632586285,1.9193428,130.25,130.18,19.2035]
[1725632586481,44.908,130.3,130.12,6.3846]
[1725632586482,21.84095266,130.27,130.12,6.3846]
[1725632586716,19.1964,130.24,130.16,7.6827]
[1725632586886,7.6795,130.22,130.17,7.6821]
[1725632587310,39.1917,130.27,130.17,19.2049]
[1725632587486,14.23906216,130.28,130.21,7.6796]
[1725632587689,7.6769,130.27,130.22,7.679]
[1725632587893,14.23906216,130.28,130.26,7.6768]
[1725632588096,7.674,130.31,130.26,7.6768]
[1725632588306,7.674,130.31,130.27,0.84445749]
[1725632588624,20.0184051,130.34,130.27,0.84445749]
[1725632588625,7.6735,130.32,130.27,7.6762]
[1725632589117,0.8371051,130.34,130.25,19.1928]
[1725632589299,7.6741,130.31,130.26,7.6769]
[1725632589501,7.6735,130.32,130.25,20.03721065]
[1725632589696,0.8371051,130.34,130.29,7.6751]
[1725632589893,0.8371051,130.34,130.3,7.6743]
[1725632590096,0.8371051,130.34,130.33,7.6728]
[1725632590600,0.8371051,130.34,130.33,53.51443142]
[1725632590789,0.8371051,130.34,130.33,52.6728]
[1725632590989,0.8371051,130.34,130.33,7.6728]
[1725632591230,0.8371051,130.34,130.31,19.1844]
[1725632591517,0.8371051,130.34,130.31,26.8583]
[1725632591718,0.8371051,130.34,130.28,19.189]
[1725632591898,0.8371051,130.34,130.3,7.6744]
[1725632592099,0.8371051,130.34,130.28,19.189]
[1725632592300,0.8371051,130.34,130.29,7.6749]
[1725632592728,8.5094051,130.34,130.28,26.8647]
[1725632592934,7.6735,130.32,130.28,19.189]
[1725632593153,1.91853051,130.31,130.21,6.5255]
[1725632593311,7.6769,130.27,130.22,19.1981]
[1725632593510,1.91925385,130.31,130.19,0.84591377]
[1725632593711,1.91925385,130.31,130.19,0.84659149]
[1725632593949,7.678,130.25,130.2,7.6804]
[1725632594239,19.187,130.3,130.2,20.04589133]
[1725632594441,7.6769,130.26,130.21,7.6796]
[1725632594608,19.187,130.3,130.22,7.679]
[1725632594609,7.6764,130.27,130.22,7.679]
[1725632594812,7.6759,130.28,130.23,7.6786]
[1725632595040,7.677,130.26,130.21,7.6797]
[1725632595719,7.6764,130.27,130.22,8.52540525]
[1725632596036,20.0,130.26,130.2,19.1998]
[1725632596337,20.0,130.26,130.17,6.0431]
[1725632596338,7.6798,130.22,130.17,20.05168985]
[1725632596560,7.677,130.26,130.21,19.1989]
[1725632596750,7.6776,130.25,130.21,19.1989]
[1725632596955,19.1903,130.28,130.19,7.6807]
[1725632597121,7.6787,130.23,130.18,19.2041]
[1725632597321,19.1903,130.28,130.19,7.6809]
[1725632597534,1.9195206,130.29,130.19,38.4052]
[1725632597731,7.6746,130.3,130.25,7.6772]
[1725632597931,7.674,130.31,130.24,0.84431087]
[1725632598210,7.6769,130.26,130.22,19.1982]
[1725632598421,1.91887427,130.32,130.18,19.2027]
[1725632598609,19.1887,130.29,130.18,20.04935736]
[1725632598830,19.1887,130.29,130.2,7.6804]
[1725632598831,7.6782,130.24,130.2,7.6804]
[1725632599132,7.6781,130.24,130.2,7.6804]
[1725632599338,21.10826757,130.29,130.15,57.6236]
[1725632599339,19.1919,130.27,130.15,57.6236]
[1725632599523,15.2478,130.25,130.15,19.2079]
[1725632599731,7.6805,130.2,130.15,26.8912]
[1725632599940,46.92026221,130.24,130.15,19.2079]
[1725632600144,7.6799,130.21,130.16,7.6825]
[1725632600377,7.6792,130.23,130.18,7.6815]
[1725632601152,7.6795,130.22,130.17,26.8869]
[1725632601561,36.36233974,130.25,130.14,19.2095]
[1725632601762,7.6804,130.21,130.16,7.6828]
[1725632602074,16.1682,130.27,130.17,38.4102]
[1725632602292,16.1682,130.32,130.19,50.0]
[1725632602569,16.1682,130.32,130.24,19.1942]
[1725632602866,16.1682,130.32,130.25,0.84499665]
[1725632603171,16.1682,130.32,130.21,38.3981]
[1725632603369,16.1682,130.32,130.2,0.84539827]
[1725632603370,18.08723905,130.32,130.2,0.84539827]
[1725632603680,19.186,130.31,130.2,20.04669136]
[1725632603851,7.6781,130.24,130.2,20.04669136]
[1725632604041,7.6791,130.23,130.18,7.6815]
[1725632604245,1.92000541,130.28,130.11,23.00927005]
[1725632604446,7.6806,130.2,130.14,19.2093]
[1725632604859,7.6806,130.2,130.15,0.84838675]
[1725632605063,1.92028425,130.3,130.15,0.84838675]
[1725632605250,6.2333,130.31,130.17,88.4109]
[1725632605459,7.6759,130.28,130.23,7.6782]
[1725632605770,6.2333,130.31,130.24,0.84605249]
[1725632605771,7.6757,130.29,130.24,0.84605249]
[1725632605943,6.2333,130.31,130.22,7.6792]
[1725632606142,7.6763,130.27,130.22,7.6792]
[1725632606660,7.677,130.26,130.22,7.6792]
[1725632606862,7.6777,130.25,130.21,19.1993]
[1725632607045,19.1888,130.29,130.18,20.0506641]
[1725632607241,7.6776,130.25,130.2,7.68]
[1725632607445,19.1888,130.29,130.2,7.68]
[1725632607663,7.6787,130.23,130.18,20.05042266]
[1725632607841,45.0,130.28,130.18,20.05042266]
[1725632608048,8.15297133,130.31,130.2,19.2003]
[1725632608350,7.6773,130.26,130.21,7.6796]
[1725632608549,7.6764,130.27,130.22,7.6792]
[1725632608784,7.6775,130.26,130.21,7.6798]
[1725632609077,19.1858,130.31,130.2,20.04635954]
[1725632609078,0.8371051,130.34,130.28,19.1886]
[1725632609246,0.8371051,130.34,130.23,50.0]
[1725632609247,2.75525166,130.34,130.23,0.84325629]
[1725632609442,0.8371051,130.34,130.23,19.1964]
[1725632609653,7.6752,130.29,130.24,7.678]
[1725632609851,7.676,130.28,130.23,26.8749]
[1725632610050,7.6776,130.25,130.2,26.8813]
[1725632610270,7.6777,130.25,130.2,26.8813]
[1725632610765,15.065,130.29,130.2,26.8813]
[1725632610766,7.6783,130.24,130.2,26.8813]
[1725632610943,36.17327196,130.29,130.2,26.8813]
[1725632610944,7.6776,130.25,130.2,26.8813]
[1725632611372,7.6781,130.24,130.2,26.8813]
[1725632611676,36.17311483,130.29,130.17,19.2048]
[1725632611978,19.1915,130.27,130.17,19.2048]
[1725632612152,45.0,130.28,130.19,19.2021]
[1725632612350,45.0,130.28,130.2,0.846642]
[1725632612351,7.6781,130.25,130.2,0.846642]
[1725632612567,7.6781,130.25,130.2,7.6804]
[1725632613071,45.0,130.28,130.19,19.2021]
[1725632613072,64.1904,130.28,130.19,19.2021]
[1725632613270,7.6806,130.2,130.16,19.2062]
[1725632613664,7.68,130.21,130.16,26.8889]
[1725632614673,7.6808,130.2,130.16,19.2062]
[1725632614981,7.6832,130.16,130.09,6.4283]
[1725632615148,7.6832,130.16,130.11,7.6852]
[1725632615761,7.6841,130.14,130.1,19.2151]
[1725632616184,7.6846,130.13,130.09,7.6864]
[1725632616382,7.6846,130.13,130.07,20.07024457]
[1725632616559,1.92126668,130.19,130.09,19.2166]
[1725632616560,1.921288,130.19,130.09,19.2166]
[1725632616760,7.6851,130.13,130.09,19.2166]
[1725632616960,7.6852,130.12,130.09,19.2166]
[1725632618281,19.2093,130.15,130.06,19.2213]
[1725632618667,7.6857,130.12,130.07,7.6879]
[1725632618856,19.2093,130.15,130.07,7.6879]
[1725632619060,19.2093,130.15,130.08,7.6873]
[1725632619284,13.89042708,130.17,130.09,0.8510186]
[1725632619588,7.6847,130.13,130.08,26.9055]
[1725632619884,19.208,130.16,130.07,7.688]
[1725632620086,19.208,130.16,130.06,7.6886]
[1725632620087,7.6865,130.1,130.06,7.6886]
[1725632620586,7.6847,130.13,130.08,7.6871]
[1725632621672,52.30192708,130.17,130.01,46.47033766]
[1725632621673,7.6866,130.1,130.04,19.2243]
[1725632621989,7.6869,130.1,130.05,7.6887]
[1725632622288,33.09682708,130.17,130.06,19.2206]
[1725632622471,45.0,130.16,130.06,19.2206]
[1725632622673,33.09682708,130.17,130.05,0.85198683]
[1725632622674,7.6847,130.13,130.08,19.2183]
[1725632622880,7.6834,130.15,130.1,7.6858]
[1725632623069,7.6847,130.13,130.08,26.9058]
[1725632623269,1.92133752,130.16,130.05,19.2226]
[1725632623489,1.92133752,130.16,130.05,26.9118]
[1725632623490,7.6868,130.1,130.05,26.9118]
[1725632624071,7.6871,130.09,130.05,26.9118]
[1725632624580,7.6876,130.08,130.05,19.2226]
[1725632624766,7.6876,130.08,130.02,20.07968923]
[1725632624971,7.6868,130.1,130.04,19.2243]
[1725632625191,7.6868,130.1,130.05,7.6891]
[1725632625702,7.6882,130.07,130.01,19.2283]
[1725632625992,16.0223,130.11,130.0,6.2277]
[1725632625993,16.0223,130.11,130.04,7.6898]
[1725632626195,16.0223,130.11,130.0,6.2277]
[1725632626196,7.6883,130.07,130.03,19.2257]
[1725632626398,64.2164,130.1,130.0,6.2277]
[1725632626622,66.13867388,130.1,130.0,19.2299]
[1725632626893,7.6877,130.08,130.03,7.6901]
[1725632627105,7.6871,130.09,130.02,19.2266]
[1725632627270,22.0778,130.11,130.05,7.6892]
[1725632627470,7.6865,130.1,130.06,7.6885]
[1725632627972,22.0778,130.11,130.06,7.6885]
[1725632627973,23.7082,130.11,130.06,7.6885]
[1725632628282,7.6867,130.1,130.06,7.6885]
[1725632628993,7.6871,130.09,130.05,7.6891]
[1725632629293,7.688,130.08,130.04,19.2243]
[1725632629498,7.688,130.08,130.04,26.9142]
[1725632629808,35.2373,130.11,130.01,19.2284]
[1725632630101,7.6894,130.05,130.01,26.9197]
[1725632630284,7.6891,130.06,130.02,7.6909]
[1725632630504,45.0,130.1,130.03,19.2259]
[1725632630722,7.688,130.08,130.04,7.6898]
[1725632631223,21.13832227,130.1,130.03,19.2259]
[1725632631401,46.83817319,130.09,130.0,19.2297]
[1725632631604,7.6905,130.03,129.99,39.76]
[1725632632212,27.18347804,130.06,129.99,39.76]
[1725632632398,27.18347804,130.06,129.99,58.9915]
[1725632632399,7.6894,130.05,129.99,58.9915]
[1725632632605,7.69,130.04,129.99,66.6839]
[1725632633113,6.0378,130.06,130.01,19.2282]
[1725632633325,13.86551665,130.07,130.04,7.6898]
[1725632633500,22.3162,130.11,130.01,19.2282]
[1725632633703,7.688,130.08,130.03,7.6905]
[1725632634012,22.3162,130.11,130.02,7.6909]
[1725632634221,7.6881,130.07,130.03,7.6904]
[1725632634728,7.6868,130.1,130.03,19.2252]
[1725632635021,7.6872,130.09,130.03,19.2252]
[1725632635399,30.0024,130.11,130.06,7.6887]
[1725632635700,30.0024,130.11,130.05,19.2226]
[1725632635701,7.687,130.09,130.05,19.2226]
[1725632636138,7.6883,130.07,130.02,26.9175]
[1725632636429,7.6876,130.08,130.02,19.2269]
[1725632636730,7.6884,130.07,130.02,26.9178]
[1725632637048,7.6884,130.07,130.02,19.2269]
[1725632637322,7.6884,130.07,130.03,7.6905]
[1725632637505,41.5313,130.11,130.02,26.9178]
[1725632637708,46.92223781,130.1,130.03,7.6903]
[1725632637902,45.0,130.1,130.03,7.6903]
[1725632638107,46.92229322,130.1,130.03,7.6903]
[1725632638325,46.92229322,130.1,129.99,58.9915]
[1725632638509,7.6883,130.07,130.03,7.6904]
[1725632638712,45.0,130.1,129.99,39.76]
[1725632638908,7.6879,130.08,130.03,26.916]
[1725632639609,7.6872,130.09,130.05,7.6892]
[1725632640113,7.6872,130.09,130.04,7.6898]
[1725632640322,7.6872,130.09,130.05,7.6892]
[1725632640628,22.3162,130.11,130.08,7.6875]
[1725632640629,16.0223,130.11,130.08,7.6875]
[1725632640831,16.0223,130.11,130.05,19.222]
[1725632640832,23.7081,130.11,130.07,7.688]
[1725632641004,16.0223,130.11,130.02,19.2269]
[1725632641211,1.92235677,130.1,130.02,19.2269]
[1725632643918,7.6923,130.0,129.99,39.76]
[1725632644529,7.6923,130.0,129.9,0.85560718]
[1725632644530,19.16272821,130.03,129.9,0.8556962]
[1725632644714,7.6957,129.95,129.9,7.6981]
[1725632644914,1.92414263,129.94,129.89,20.0837051]
[1725632645112,1.9242365,129.97,129.89,20.0837051]
[1725632645306,53.0200365,129.97,129.89,0.8371051]
[1725632645505,7.6957,129.95,129.89,8.5357051]
[1725632645712,13.94973554,129.96,129.89,0.8371051]
[1725632645918,13.94973554,129.96,129.89,1.69474038]
[1725632646324,13.94973554,129.96,129.9,0.85748417]
[1725632646524,13.94973554,129.96,129.89,0.8371051]
[1725632646730,9.61944998,129.95,129.9,7.6981]
[1725632646933,7.6954,129.95,129.89,8.5358051]
[1725632647135,13.94973554,129.96,129.9,0.85800376]
[1725632647325,13.94973554,129.96,129.92,7.6968]
[1725632647714,21.64463554,129.96,129.91,26.9407]
[1725632647911,7.696,129.94,129.89,0.8371051]
[1725632648141,7.6953,129.95,129.9,7.6982]
[1725632648306,21.64443554,129.96,129.91,7.6975]
[1725632648510,7.6952,129.95,129.9,26.9426]
[1725632648709,21.64443554,129.96,129.91,7.6976]
[1725632648932,13.94973554,129.96,129.92,7.697]
[1725632649157,13.94973554,129.96,129.9,19.2445]
[1725632649325,13.94973554,129.96,129.92,7.697]
[1725632649740,21.64443554,129.96,129.91,7.6975]
[1725632650229,13.94973554,129.96,129.92,7.6969]
[1725632650616,13.94973554,129.96,129.92,19.2416]
[1725632650824,13.94973554,129.96,129.92,26.9385]
[1725632651026,13.94973554,129.96,129.94,19.2386]
[1725632651229,6.0804,130.01,129.96,7.6946]
[1725632651230,7.6924,130.0,129.96,7.6946]
[1725632651413,7.6924,130.0,129.94,19.2386]
[1725632651414,7.6939,129.98,129.94,19.2386]
[1725632651812,7.6939,129.98,129.94,26.9343]
[1725632652227,7.6928,130.0,129.95,7.6952]
[1725632652406,6.0804,130.01,129.94,19.2386]
[1725632652407,13.7721,130.01,129.94,19.2386]
[1725632652611,13.90713852,130.02,129.96,19.2353]
[1725632652835,13.90713852,130.02,129.94,6.2852]
[1725632653045,21.59843852,130.02,129.98,19.2328]
[1725632653335,21.59843852,130.02,129.98,26.9262]
[1725632653723,13.90713852,130.02,129.95,26.9323]
[1725632654027,13.90713852,130.02,129.94,6.2852]
[1725632654241,13.90713852,130.02,130.0,7.6918]
[1725632654618,6.1115,130.06,130.0,7.6918]
[1725632655033,7.6893,130.05,130.01,7.6915]
[1725632655239,6.1115,130.06,129.99,19.2313]
[1725632655240,7.6904,130.04,129.99,19.2313]
[1725632655412,7.6904,130.04,130.0,7.6922]
[1725632655612,7.6904,130.04,129.99,26.924]
[1725632655832,7.6904,130.04,129.96,19.2356]
[1725632655833,1.92306019,130.04,129.96,19.2356]
[1725632656019,7.6927,130.0,129.96,19.2356]
[1725632656213,13.76183246,130.05,129.96,19.2356]
[1725632656436,52.6901,130.04,129.99,7.6928]
[1725632656665,14.24321092,130.06,129.99,0.85485892]
[1725632656935,14.24321092,130.06,129.94,50.0]
[1725632656936,14.24321092,130.06,130.0,19.23]
[1725632657320,7.69,130.04,130.0,19.23]
[1725632657827,1.92280815,130.05,129.91,16.5147]
[1725632657828,1.92301691,130.05,129.97,19.2341]
[1725632658026,19.2285,130.02,129.9,6.5468]
[1725632658235,7.6931,129.99,129.95,7.695]
[1725632658917,19.2285,130.02,129.93,19.2406]
[1725632659220,45.0,130.01,129.93,19.2406]
[1725632659431,1.92357938,130.04,129.97,7.6939]
[1725632659743,46.92357938,130.04,129.97,7.6939]
[1725632659924,49.64852329,130.04,129.95,19.2371]
[1725632660121,6.0058,130.03,129.95,19.2371]
[1725632660318,45.0,130.02,129.96,7.6946]
[1725632660534,45.0,130.02,129.95,26.9318]
[1725632660724,1.92356104,130.01,129.95,26.9318]
[1725632660927,46.92358439,130.02,129.95,26.9318]
[1725632661143,1.92359891,130.01,129.95,26.9318]
[1725632661428,1.92361575,130.01,129.94,7.6957]
[1725632661849,1.92361575,130.01,129.92,19.2416]
[1725632662047,15.7077,130.0,129.92,19.2416]
[1725632662243,45.0,129.99,129.92,19.2416]
[1725632662552,15.7077,130.0,129.94,19.2387]
[1725632662741,6.0058,130.03,129.98,19.233]
[1725632662929,7.6917,130.01,129.96,7.6941]
[1725632663449,21.87604957,130.03,129.95,26.9324]
[1725632663653,7.6929,129.99,129.95,19.2373]
[1725632663848,7.6935,129.98,129.93,7.6962]
[1725632664356,7.698,129.91,129.89,0.8371051]
[1725632664557,7.6982,129.9,129.89,0.8371051]
[1725632664759,7.6997,129.88,129.83,19.2552]
[1725632664960,8.33650082,129.95,129.8,7.7041]
[1725632664961,18.29661134,129.87,129.8,7.7041]
[1725632665168,7.7018,129.84,129.8,26.9635]
[1725632665457,16.3713,129.87,129.8,19.2594]
[1725632665646,46.92577382,129.86,129.8,19.2594]
[1725632665855,7.7022,129.84,129.8,19.2594]
[1725632666027,7.704,129.81,129.76,27.8085051]
[1725632666227,46.92616815,129.8,129.76,0.8371051]
[1725632666456,46.92616815,129.8,129.66,15.0212]
[1725632666457,1.92666565,129.79,129.65,50.0]
[1725632666642,7.706,129.77,129.71,7.7094]
[1725632666827,13.93512654,129.79,129.71,7.7094]
[1725632667036,7.7064,129.77,129.7,19.2752]
[1725632667234,45.0,129.76,129.7,19.2752]
[1725632667458,1.83312258,129.75,129.7,19.2752]
[1725632667638,9.63483615,129.75,129.66,19.2799]
[1725632667843,9.63483615,129.75,129.68,7.7112]
[1725632668046,45.0,129.74,129.62,19.2862]
[1725632668253,1.92782717,129.73,129.62,19.2862]
[1725632668444,7.7097,129.71,129.62,27.0008]
[1725632668644,1.9283351,129.7,129.62,19.2862]
[1725632668843,8.35131907,129.74,129.65,19.2816]
[1725632669041,45.0,129.73,129.67,7.7117]
[1725632669239,45.0,129.73,129.65,19.2816]
[1725632669240,46.92791663,129.73,129.66,7.7119]
[1725632669663,46.92791663,129.73,129.65,19.2816]
[1725632669664,46.9279422,129.73,129.65,19.2816]
[1725632669852,46.9279422,129.73,129.68,7.7111]
[1725632670163,13.99570887,129.75,129.68,19.2771]
[1725632670347,45.0,129.74,129.7,7.7099]
[1725632671447,45.0,129.74,129.71,7.7092]
[1725632671667,13.99570887,129.75,129.71,7.7092]
[1725632671965,38.79627035,129.95,129.71,7.7092]
[1725632671966,14.04631425,129.83,129.8,7.7039]
[1725632672261,14.04631425,129.83,129.81,7.7033]
[1725632672769,15.3132,129.88,129.83,7.7022]
[1725632672943,15.3132,129.88,129.82,7.7028]
[1725632673139,1.92585187,129.87,129.82,19.2565]
[1725632673442,15.3132,129.88,129.76,0.86101752]
[1725632673443,15.3132,129.88,129.85,19.2523]
[1725632673641,28.97026731,129.95,129.85,19.2523]
[1725632673840,28.97026731,129.95,129.87,7.6999]
[1725632673841,33.60266912,129.95,129.87,7.6999]
[1725632674053,33.60266912,129.95,129.85,19.2523]
[1725632674258,43.60266912,129.95,129.83,7.7019]
[1725632674458,14.57499382,129.94,129.83,7.7019]
[1725632674663,1.92565822,129.93,129.83,7.7019]
[1725632674863,16.94921438,129.92,129.83,7.7019]
[1725632675170,7.699,129.89,129.81,19.2578]
[1725632675355,34.22350861,129.91,129.81,19.2578]
[1725632675356,21.92595165,129.88,129.81,19.2578]
[1725632675937,7.7006,129.86,129.81,19.2578]
[1725632676243,7.6998,129.88,129.81,19.2578]
[1725632676553,7.6998,129.88,129.82,7.7024]
[1725632676755,45.0,129.87,129.82,7.7024]
[1725632676949,1.92567243,129.86,129.81,19.2578]
[1725632677266,7.7013,129.85,129.81,19.2578]
[1725632677439,7.7013,129.85,129.8,7.7041]
[1725632677440,45.0,129.84,129.8,7.7041]
[1725632677944,45.0,129.84,129.78,26.9681]
[1725632678151,9.62893043,129.83,129.78,19.2633]
[1725632678352,45.0,129.82,129.78,19.2633]
[1725632678666,45.0,129.82,129.78,26.9685]
[1725632678866,52.7029,129.82,129.78,19.2633]
[1725632679864,1.92638999,129.86,129.78,19.2633]
[1725632680165,1.92614204,129.85,129.78,19.2633]
[1725632681246,7.7028,129.83,129.78,26.9686]
[1725632681473,45.0,129.82,129.78,26.9686]
[1725632681772,7.7028,129.83,129.79,7.7047]
[1725632681949,7.7019,129.84,129.78,19.2633]
[1725632682281,45.0,129.83,129.79,7.7047]
[1725632682444,1.92634327,129.82,129.75,19.2672]
[1725632682769,7.7043,129.8,129.75,26.9738]
[1725632682982,52.7047,129.79,129.73,7.7077]
[1725632683270,45.0,129.78,129.74,7.7074]
[1725632683448,7.705,129.79,129.74,7.7076]
[1725632683649,1.8253094,129.81,129.75,7.7068]
[1725632683850,7.7043,129.8,129.75,7.7068]
[1725632684060,7.7043,129.8,129.74,26.9754]
[1725632684368,7.7043,129.8,129.74,19.2683]
[1725632684662,7.7043,129.8,129.75,7.7067]
[1725632684967,7.7056,129.78,129.74,19.2683]
[1725632685272,7.7048,129.79,129.74,26.9759]
[1725632685474,7.7042,129.8,129.75,7.707]
[1725632685646,52.7036,129.81,129.76,7.7063]
[1725632685851,7.7036,129.81,129.77,7.7059]
[1725632686049,7.7036,129.81,129.74,19.2683]
[1725632686254,7.7043,129.8,129.75,7.7065]
[1725632686553,14.03483726,129.85,129.76,0.9649983]
[1725632686874,14.03483726,129.85,129.82,7.7028]
[1725632687169,7.7001,129.87,129.82,7.7028]